[Event "Skalica Rapid 2020"]
[Site "Skalica"]
[Date "2020.08.29"]
[Round "3.8"]
[White "Osicka, Premysl"]
[Black "Romanova, Ela"]
[Result "0-1"]
[ECO "D00"]
[WhiteElo "1590"]
[BlackElo "1529"]
[Annotator "NA"]
[PlyCount "46"]
[EventDate "2020.08.29"]
[EventType "swiss"]
[EventCountry "SVK"]
[SourceTitle "playchess.com"]
[Source "ChessBase"]
[SourceQuality "1"]
[TimeControl "600+5"]

1. d4 {[%emt 0:00:00]} d5 2. Bf4 {[%emt 0:00:00]} e6 {[%emt 0:00:04]} 3. Nf3 {[%emt 0:00:01]} Bd6 {[%emt 0:00:02]} 4. Bg3 {[%emt 0:00:01]} f5 {[%emt 0:00:04]} 5. e3 {[%emt 0:00:09]} Nf6 {[%emt 0:00:01]} 6. Ne5 {[%emt 0:00:02]} Nbd7 {[%emt 0:00:08]} 7. c3 {[%emt 0:00:04]} O-O {[%emt 0:00:06]} 8. Bd3 {[%emt 0:00:31]} c6 {[%emt 0:00:04]} 9. Qe2 {[%emt 0:00:03]} Qc7 {[%emt 0:00:03]} 10. f4 {[%emt 0:00:08]} Bxe5 {[%emt 0:00:13]} 11. fxe5 {[%emt 0:00:05]} Ne4 {[%emt 0:00:08]} 12. Nd2 {[%emt 0:00:22]} c5 {[%emt 0:00:05]} 13. Bxe4 {[%emt 0:01:27]} fxe4 {[%emt 0:00:11]} 14. O-O-O {[%emt 0:00:04]} a5 {[%emt 0:00:24]} 15. h4 {[%emt 0:00:24]} b5 {[%emt 0:00:04]} 16. Qxb5 {[%emt 0:00:38]} Ba6 {[%emt 0:00:18]} 17. Qa4 {[%emt 0:00:13]} Rfb8 {[%emt 0:00:41]} 18. Nb3 {[%emt 0:00:54]} Bd3 {[%emt 0:04:26]} 19. Rd2 {[%emt 0:01:19]} Nb6 {[%emt 0:00:12]} 20. Qa3 {[%emt 0:00:30]} Nc4 {[%emt 0:00:28]} 21. Qxc5 {[%emt 0:00:02]} Qb7 {[%emt 0:00:51]} 22. Rxd3 {[%emt 0:02:46]} exd3 {[%emt 0:00:09]} 23. e4 {[%emt 0:00:16]} Rc8 {[%emt 0:01:24]} 0-1

[Event "Skalica Rapid 2020"]
[Site "Skalica"]
[Date "2020.08.29"]
[Round "3.9"]
[White "Sperat Czar, Nicolas"]
[Black "Cedzo, Adam"]
[Result "0-1"]
[ECO "C55"]
[WhiteElo "1737"]
[BlackElo "1585"]
[Annotator "NA"]
[PlyCount "45"]
[EventDate "2020.08.29"]
[EventType "swiss"]
[EventCountry "SVK"]
[SourceTitle "playchess.com"]
[Source "ChessBase"]
[SourceQuality "1"]
[TimeControl "600+5"]

1. e4 {[%emt 0:00:00]} e5 {[%emt 0:00:00]} 2. Nf3 {[%emt 0:00:00]} Nc6 {[%emt 0:00:00]} 3. Bc4 {[%emt 0:00:04]} Nf6 {[%emt 0:00:00]} 4. d3 {[%emt 0:00:10]} h6 {[%emt 0:00:07]} 5. O-O {[%emt 0:00:06]} Bc5 {[%emt 0:00:04]} 6. c3 {[%emt 0:00:15]} d6 {[%emt 0:00:38]} 7. d4 {[%emt 0:00:09]} Bb6 {[%emt 0:00:15]} 8. Re1 {[%emt 0:00:18]} O-O {[%emt 0:00:13]} 9. h3 {[%emt 0:00:09]} Re8 {[%emt 0:00:10]} 10. dxe5 {[%emt 0:00:51]} Nxe5 {[%emt 0:00:10]} 11. Nxe5 {[%emt 0:00:10]} dxe5 {[%emt 0:00:01]} 12. Qc2 {[%emt 0:00:20]} Be6 {[%emt 0:00:15]} 13. Bxe6 {[%emt 0:00:22]} Rxe6 14. Nd2 {[%emt 0:00:16]} Qe7 {[%emt 0:00:19]} 15. Nf3 {[%emt 0:00:11]} Rd8 {[%emt 0:00:10]} 16. a4 {[%emt 0:00:19]} a5 {[%emt 0:00:17]} 17. Be3 {[%emt 0:00:12]} Bxe3 {[%emt 0:00:19]} 18. Rxe3 {[%emt 0:00:03]} Nh5 {[%emt 0:00:13]} 19. Rd3 {[%emt 0:00:16]} Rxd3 {[%emt 0:00:14]} 20. Qxd3 {[%emt 0:00:02]} Nf4 {[%emt 0:00:01]} 21. Qc2 {[%emt 0:00:18]} Rg6 {[%emt 0:00:05]} 22. Nh4 {[%emt 0:00:09]} Qxh4 {[%emt 0:00:03]} 23. Qd1 0-1

[Event "Skalica Rapid 2020"]
[Site "Skalica"]
[Date "2020.08.29"]
[Round "3.9"]
[White "Striskova Lucia"]
[Black "Danada, Tomas"]
[Result "0-1"]
[ECO "B06"]
[WhiteElo "1484"]
[BlackElo "2122"]
[Annotator "ChessBase"]
[PlyCount "68"]
[EventDate "2020.08.29"]
[EventType "swiss"]
[EventCountry "SVK"]
[SourceTitle "playchess.com"]
[Source "ChessBase"]
[SourceQuality "1"]
[TimeControl "600+5"]

1. e4 {[%emt 0:00:00]} g6 {[%emt 0:00:00]} 2. d4 {[%emt 0:00:00]} Bg7 {[%emt 0:00:01]} 3. Nf3 {[%emt 0:00:01]} d6 {[%emt 0:00:01]} 4. Bc4 {[%emt 0:00:16]} e6 {[%emt 0:00:02]} 5. O-O {[%emt 0:00:18]} Ne7 {[%emt 0:00:02]} 6. Bg5 {[%emt 0:00:27]} h6 {[%emt 0:00:01]} 7. Be3 {[%emt 0:00:09]} Nd7 {[%emt 0:00:06]} 8. Qd2 {[%emt 0:00:04]} a6 {[%emt 0:00:02]} 9. Nc3 {[%emt 0:00:08]} b5 {[%emt 0:00:01]} 10. Bd3 {[%emt 0:00:25]} Bb7 {[%emt 0:00:02]} 11. Ne2 {[%emt 0:00:13]} Nf6 {[%emt 0:00:01]} 12. Ng3 {[%emt 0:00:11]} Ng4 {[%emt 0:00:02]} 13. h3 {[%emt 0:00:30]} Nxe3 {[%emt 0:00:02]} 14. Qxe3 {[%emt 0:00:01]} c5 {[%emt 0:00:11]} 15. c4 {[%emt 0:00:55]} cxd4 {[%emt 0:00:43]} 16. Nxd4 {[%emt 0:00:03]} bxc4 {[%emt 0:00:18]} 17. Bxc4 {[%emt 0:00:09]} O-O {[%emt 0:00:16]} 18. Nde2 {[%emt 0:00:49]} d5 {[%emt 0:00:16]} 19. exd5 {[%emt 0:00:18]} Nxd5 {[%emt 0:00:02]} 20. Qb3 {[%emt 0:00:45]} Rb8 {[%emt 0:00:12]} 21. Qc2 {[%emt 0:00:01]} Rc8 {[%emt 0:00:16]} 22. Qb3 {[%emt 0:00:25]} Rb8 {[%emt 0:00:20]} 23. Qc2 {[%emt 0:00:03]} Qh4 {[%emt 0:00:02]} 24. Bxd5 {[%emt 0:00:45]} Bxd5 {[%emt 0:00:05]} 25. Nc3 {[%emt 0:00:01]} Rfc8 {[%emt 0:00:13]} 26. Qd2 {[%emt 0:00:14]} Rd8 {[%emt 0:01:06]} 27. Qe2 {[%emt 0:00:25]} Bc4 {[%emt 0:00:08]} 28. Qc2 {[%emt 0:00:17]} Bxf1 {[%emt 0:00:06]} 29. Rxf1 {[%emt 0:00:03]} Qb4 {[%emt 0:00:11]} 30. Nd1 {[%emt 0:01:42]} Rbc8 {[%emt 0:00:09]} 31. Qe2 {[%emt 0:00:03]} Qc4 {[%emt 0:00:30]} 32. Qe3 {[%emt 0:01:13]} Rd3 {[%emt 0:00:26]} 33. Qe1 {[%emt 0:00:14]} Qxa2 {[%emt 0:00:22]} 34. Qb4 {[%emt 0:00:05]} Qb3 {[%emt 0:00:18]} 0-1

[Event "Skalica Rapid 2020"]
[Site "Skalica"]
[Date "2020.08.29"]
[Round "3.10"]
[White "Sobek Michal"]
[Black "Jancovic Peter"]
[Result "0-1"]
[ECO "B51"]
[WhiteElo "1913"]
[BlackElo "2271"]
[Annotator "ChessBase"]
[PlyCount "46"]
[EventDate "2020.08.29"]
[EventType "swiss"]
[EventCountry "SVK"]
[SourceTitle "playchess.com"]
[Source "ChessBase"]
[SourceQuality "1"]
[TimeControl "600+5"]

1. e4 {[%emt 0:00:00]} c5 {[%emt 0:00:59]} 2. Nf3 {[%emt 0:00:00]} d6 {[%emt 0:00:01]} 3. Bb5+ {[%emt 0:00:01]} Nd7 {[%emt 0:00:01]} 4. c3 {[%emt 0:00:01]} Ngf6 {[%emt 0:00:02]} 5. Qe2 {[%emt 0:00:01]} a6 {[%emt 0:00:01]} 6. Ba4 {[%emt 0:00:00]} b5 {[%emt 0:00:03]} 7. Bc2 {[%emt 0:00:01]} e5 {[%emt 0:00:01]} 8. O-O {[%emt 0:00:03]} Be7 {[%emt 0:00:01]} 9. d4 {[%emt 0:00:03]} cxd4 {[%emt 0:00:10]} 10. cxd4 {[%emt 0:00:01]} O-O {[%emt 0:00:03]} 11. b4 {[%emt 0:00:27]} Bb7 {[%emt 0:00:18]} 12. Bb2 {[%emt 0:00:22]} Rc8 {[%emt 0:00:06]} 13. Nc3 {[%emt 0:00:40]} Re8 {[%emt 0:00:08]} 14. Rfd1 {[%emt 0:00:40]} Qb6 {[%emt 0:00:15]} 15. Nd5 {[%emt 0:00:53]} Nxd5 {[%emt 0:00:42]} 16. exd5 {[%emt 0:00:02]} Bxd5 {[%emt 0:00:01]} 17. dxe5 {[%emt 0:01:08]} Bxf3 {[%emt 0:00:02]} 18. Qd3 {[%emt 0:00:00]} Rxc2 {[%emt 0:00:08]} 19. Qxc2 {[%emt 0:00:06]} Bxd1 {[%emt 0:00:02]} 20. Rxd1 {[%emt 0:00:09]} Nxe5 {[%emt 0:00:04]} 21. Qf5 {[%emt 0:00:23]} Bf8 {[%emt 0:00:19]} 22. Rd4 {[%emt 0:00:42]} Nc4 {[%emt 0:00:11]} 23. Bc3 {[%emt 0:00:12]} Qxd4 {[%emt 0:00:03]} 0-1

[Event "Skalica Rapid 2020"]
[Site "Skalica"]
[Date "2020.08.29"]
[Round "3.10"]
[White "Pekar, Matus"]
[Black "Gurevich, Michele"]
[Result "1-0"]
[ECO "C42"]
[WhiteElo "1575"]
[BlackElo "1107"]
[Annotator "NA"]
[PlyCount "81"]
[EventDate "2020.08.29"]
[EventType "swiss"]
[EventCountry "SVK"]
[SourceTitle "playchess.com"]
[Source "ChessBase"]
[SourceQuality "1"]
[TimeControl "600+5"]

1. e4 {[%emt 0:00:00]} e5 {[%emt 0:00:00]} 2. Nf3 {[%emt 0:00:02]} Nf6 {[%emt 0:00:00]} 3. Nxe5 {[%emt 0:00:03]} d6 {[%emt 0:00:00]} 4. Nf3 {[%emt 0:00:02]} Nxe4 {[%emt 0:00:01]} 5. d4 {[%emt 0:00:22]} Nf6 {[%emt 0:00:11]} 6. Bd3 {[%emt 0:00:11]} Be7 {[%emt 0:00:04]} 7. O-O {[%emt 0:00:05]} O-O {[%emt 0:00:03]} 8. Re1 {[%emt 0:00:04]} d5 {[%emt 0:00:06]} 9. Bf4 {[%emt 0:00:23]} Bg4 {[%emt 0:00:15]} 10. Nbd2 {[%emt 0:00:31]} Nc6 {[%emt 0:00:20]} 11. c3 {[%emt 0:00:06]} Bd6 {[%emt 0:00:12]} 12. Bxd6 {[%emt 0:00:31]} Qxd6 {[%emt 0:00:17]} 13. Qc2 {[%emt 0:00:19]} Rae8 {[%emt 0:01:01]} 14. a4 {[%emt 0:00:43]} Re7 {[%emt 0:00:18]} 15. Rxe7 {[%emt 0:00:10]} Nxe7 {[%emt 0:00:06]} 16. Ne5 {[%emt 0:00:30]} Qe6 {[%emt 0:00:38]} 17. Re1 {[%emt 0:00:05]} Ng6 {[%emt 0:00:28]} 18. Re3 {[%emt 0:01:16]} Qd6 {[%emt 0:00:40]} 19. Nxg6 {[%emt 0:01:42]} fxg6 {[%emt 0:00:07]} 20. f3 {[%emt 0:00:15]} Bd7 {[%emt 0:00:20]} 21. b3 {[%emt 0:00:19]} Nh5 {[%emt 0:00:29]} 22. c4 {[%emt 0:00:57]} c6 {[%emt 0:00:19]} 23. Re5 {[%emt 0:00:19]} c5 {[%emt 0:00:23]} 24. Rxd5 {[%emt 0:00:11]} Qe7 {[%emt 0:00:25]} 25. dxc5 {[%emt 0:00:20]} Qe1+ {[%emt 0:00:28]} 26. Nf1 {[%emt 0:00:18]} Bc6 {[%emt 0:00:31]} 27. Rd4 {[%emt 0:00:26]} Qa1 {[%emt 0:01:04]} 28. Rd6 {[%emt 0:00:17]} Nf4 {[%emt 0:00:38]} 29. Be4 {[%emt 0:00:05]} Bxe4 {[%emt 0:00:18]} 30. Qxe4 {[%emt 0:00:02]} Qc1 {[%emt 0:00:39]} 31. h3 {[%emt 0:00:21]} h6 {[%emt 0:00:41]} 32. Rd7 {[%emt 0:00:04]} Rf7 {[%emt 0:00:37]} 33. Qe8+ {[%emt 0:00:08]} Kh7 {[%emt 0:00:04]} 34. Rxf7 {[%emt 0:00:07]} Nxh3+ {[%emt 0:00:23]} 35. gxh3 {[%emt 0:00:06]} Qg5+ {[%emt 0:00:01]} 36. Kf2 {[%emt 0:00:04]} Qh4+ {[%emt 0:00:05]} 37. Ng3 {[%emt 0:00:01]} Qd4+ {[%emt 0:00:04]} 38. Qe3 {[%emt 0:00:12]} Qb2+ {[%emt 0:00:04]} 39. Ne2 {[%emt 0:00:04]} Qb1 {[%emt 0:00:27]} 40. Qe5 {[%emt 0:00:10]} Qf5 {[%emt 0:00:17]} 41. Qxg7# {[%emt 0:00:03]} 1-0

[Event "Skalica Rapid 2020"]
[Site "Skalica"]
[Date "2020.08.29"]
[Round "3.11"]
[White "Takacs Laszlo"]
[Black "Grieve, Harry"]
[Result "0-1"]
[ECO "B47"]
[WhiteElo "2128"]
[BlackElo "1887"]
[Annotator "ChessBase"]
[PlyCount "70"]
[EventDate "2020.08.29"]
[EventType "swiss"]
[EventCountry "SVK"]
[SourceTitle "playchess.com"]
[Source "ChessBase"]
[SourceQuality "1"]
[TimeControl "600+5"]

1. e4 {[%emt 0:00:00]} c5 {[%emt 0:00:00]} 2. Nf3 {[%emt 0:00:01]} e6 {[%emt 0:00:00]} 3. d4 {[%emt 0:00:02]} cxd4 {[%emt 0:00:00]} 4. Nxd4 {[%emt 0:00:01]} Nc6 {[%emt 0:00:00]} 5. Nc3 {[%emt 0:00:03]} Qc7 {[%emt 0:00:01]} 6. Be2 {[%emt 0:00:09]} a6 {[%emt 0:00:02]} 7. O-O {[%emt 0:00:07]} Nf6 {[%emt 0:00:02]} 8. Kh1 {[%emt 0:00:20]} b5 {[%emt 0:00:10]} 9. a3 {[%emt 0:00:23]} Bb7 {[%emt 0:00:03]} 10. f4 {[%emt 0:00:25]} h5 {[%emt 0:01:45]} 11. Be3 {[%emt 0:02:10]} Nxd4 {[%emt 0:00:50]} 12. Qxd4 {[%emt 0:00:11]} Ng4 {[%emt 0:00:07]} 13. Bg1 {[%emt 0:00:03]} Rc8 {[%emt 0:00:15]} 14. Bf3 {[%emt 0:01:04]} Qxf4 {[%emt 0:01:42]} 15. Bxg4 {[%emt 0:00:50]} Qxg4 {[%emt 0:00:02]} 16. Rxf7 {[%emt 0:00:18]} Kxf7 {[%emt 0:00:01]} 17. Qxd7+ {[%emt 0:00:02]} Kg6 {[%emt 0:00:12]} 18. Qxb7 {[%emt 0:00:08]} Bc5 {[%emt 0:01:11]} 19. Qxa6 {[%emt 0:00:29]} Kh7 {[%emt 0:00:49]} 20. Qxb5 {[%emt 0:02:41]} Bxg1 {[%emt 0:00:06]} 21. Kxg1 {[%emt 0:00:07]} Rhd8 {[%emt 0:00:23]} 22. h3 {[%emt 0:00:24]} Qh4 {[%emt 0:00:39]} 23. Qe2 {[%emt 0:00:05]} Qg5 {[%emt 0:00:19]} 24. Rd1 {[%emt 0:00:18]} Rxd1+ {[%emt 0:00:02]} 25. Nxd1 {[%emt 0:00:12]} Qc1 {[%emt 0:01:20]} 26. Qxh5+ {[%emt 0:00:25]} Kg8 {[%emt 0:00:01]} 27. Kh2 {[%emt 0:00:41]} Qf4+ {[%emt 0:00:13]} 28. Kg1 {[%emt 0:00:20]} Qc1 {[%emt 0:00:50]} 29. Kh2 {[%emt 0:00:01]} Qf4+ {[%emt 0:00:41]} 30. Kg1 {[%emt 0:00:02]} Qxe4 {[%emt 0:00:02]} 31. c3 {[%emt 0:00:12]} Rd8 {[%emt 0:00:14]} 32. Kh2 {[%emt 0:00:20]} Qf4+ {[%emt 0:00:07]} 33. Kg1 {[%emt 0:00:04]} Qc1 {[%emt 0:00:05]} 34. b4 {[%emt 0:00:02]} Rxd1+ {[%emt 0:00:04]} 35. Kh2 {[%emt 0:00:05]} Qf4+ {[%emt 0:00:01]} 0-1

[Event "Skalica Rapid 2020"]
[Site "Skalica"]
[Date "2020.08.29"]
[Round "3.11"]
[White "Fajtakova, Silvia"]
[Black "Tupy, Emil"]
[Result "0-1"]
[ECO "B06"]
[WhiteElo "1509"]
[BlackElo "1538"]
[Annotator "NA"]
[PlyCount "112"]
[EventDate "2020.08.29"]
[EventType "swiss"]
[EventCountry "SVK"]
[SourceTitle "playchess.com"]
[Source "ChessBase"]
[SourceQuality "1"]
[TimeControl "600+5"]

1. e4 {[%emt 0:00:00]} g6 {[%emt 0:00:00]} 2. c3 {[%emt 0:00:02]} Bg7 {[%emt 0:00:00]} 3. d4 {[%emt 0:00:02]} d6 {[%emt 0:00:00]} 4. Nf3 {[%emt 0:00:05]} Nf6 {[%emt 0:00:01]} 5. Bd3 {[%emt 0:00:08]} O-O {[%emt 0:00:09]} 6. h3 {[%emt 0:00:03]} Nbd7 {[%emt 0:00:09]} 7. O-O {[%emt 0:00:05]} c5 {[%emt 0:00:03]} 8. Re1 {[%emt 0:00:24]} cxd4 {[%emt 0:00:05]} 9. cxd4 {[%emt 0:00:01]} e5 {[%emt 0:00:11]} 10. d5 {[%emt 0:00:03]} Nc5 {[%emt 0:00:05]} 11. Bc2 {[%emt 0:00:04]} a5 {[%emt 0:00:14]} 12. Nc3 {[%emt 0:00:20]} Bd7 {[%emt 0:00:07]} 13. Bg5 {[%emt 0:00:06]} b5 {[%emt 0:00:11]} 14. Qc1 {[%emt 0:00:27]} b4 {[%emt 0:00:13]} 15. Nd1 {[%emt 0:00:17]} Qc8 {[%emt 0:00:09]} 16. Bh6 {[%emt 0:00:12]} Bxh3 {[%emt 0:00:17]} 17. Bxg7 {[%emt 0:00:24]} Kxg7 {[%emt 0:00:02]} 18. gxh3 {[%emt 0:00:11]} Qxh3 {[%emt 0:00:02]} 19. Nh2 {[%emt 0:00:33]} Nh5 {[%emt 0:00:32]} 20. Re3 {[%emt 0:00:35]} Qd7 {[%emt 0:00:09]} 21. Qd2 {[%emt 0:01:19]} Nf4 {[%emt 0:00:12]} 22. Rg3 {[%emt 0:00:19]} Qb5 {[%emt 0:00:20]} 23. Re3 {[%emt 0:00:17]} Qd7 {[%emt 0:00:12]} 24. b3 Nh3+ {[%emt 0:00:16]} 25. Kf1 {[%emt 0:00:46]} Nf4 {[%emt 0:00:01]} 26. a3 {[%emt 0:00:13]} Qb5+ {[%emt 0:00:18]} 27. Kg1 {[%emt 0:00:14]} f5 {[%emt 0:00:16]} 28. exf5 {[%emt 0:00:13]} gxf5 {[%emt 0:00:01]} 29. a4 {[%emt 0:00:09]} Qd7 {[%emt 0:00:04]} 30. Rg3+ {[%emt 0:00:02]} Kh8 {[%emt 0:00:01]} 31. Ne3 {[%emt 0:00:11]} Ne4 {[%emt 0:00:15]} 32. Bxe4 {[%emt 0:00:07]} fxe4 {[%emt 0:00:01]} 33. Ng2 {[%emt 0:00:44]} Nh3+ {[%emt 0:00:11]} 34. Kf1 Rxf2+ {[%emt 0:00:07]} 35. Qxf2 {[%emt 0:00:03]} Nxf2 {[%emt 0:00:02]} 36. Kxf2 {[%emt 0:00:01]} Rf8+ {[%emt 0:00:07]} 37. Kg1 {[%emt 0:00:02]} Qa7+ {[%emt 0:00:09]} 38. Kh1 {[%emt 0:00:05]} Qd4 {[%emt 0:00:34]} 39. Rg1 {[%emt 0:00:04]} Qxd5 {[%emt 0:00:04]} 40. Ng4 {[%emt 0:00:23]} Qe6 {[%emt 0:00:27]} 41. Nh2 {[%emt 0:00:14]} d5 {[%emt 0:00:27]} 42. Nf1 {[%emt 0:00:05]} d4 {[%emt 0:00:18]} 43. Kh2 {[%emt 0:00:22]} Rf6 {[%emt 0:00:29]} 44. Nh4 {[%emt 0:00:30]} Rh6 {[%emt 0:00:36]} 45. Rg4 {[%emt 0:00:08]} e3 {[%emt 0:00:08]} 46. Kh3 {[%emt 0:00:22]} Qxb3 {[%emt 0:00:09]} 47. R1g3 {[%emt 0:00:22]} Qd5 {[%emt 0:00:11]} 48. Nh2 {[%emt 0:00:19]} e2 {[%emt 0:00:10]} 49. N2f3 e4 {[%emt 0:00:28]} 50. Ne1 {[%emt 0:00:02]} e3 {[%emt 0:00:09]} 51. Nef3 {[%emt 0:00:01]} d3 {[%emt 0:00:13]} 52. Rf4 {[%emt 0:01:02]} Qe6+ {[%emt 0:00:25]} 53. Kh2 {[%emt 0:00:00]} Rxh4+ {[%emt 0:00:17]} 54. Rxh4 {[%emt 0:00:10]} d2 {[%emt 0:00:11]} 55. Nxd2 {[%emt 0:00:31]} exd2 {[%emt 0:00:06]} 56. Rd4 {[%emt 0:00:04]} d1=Q {[%emt 0:00:12]} 0-1

[Event "Skalica Rapid 2020"]
[Site "Skalica"]
[Date "2020.08.29"]
[Round "3.12"]
[White "Stevik Patrik"]
[Black "Bombek, Peter"]
[Result "1-0"]
[ECO "A03"]
[WhiteElo "1895"]
[BlackElo "2090"]
[Annotator "ChessBase"]
[PlyCount "63"]
[EventDate "2020.08.29"]
[EventType "swiss"]
[EventCountry "SVK"]
[SourceTitle "playchess.com"]
[Source "ChessBase"]
[SourceQuality "1"]
[TimeControl "600+5"]

1. b3 {[%emt 0:00:43]} d5 {[%emt 0:00:01]} 2. Bb2 {[%emt 0:00:03]} c5 {[%emt 0:00:03]} 3. e3 {[%emt 0:00:01]} Nf6 {[%emt 0:00:02]} 4. f4 {[%emt 0:00:01]} Nc6 {[%emt 0:00:02]} 5. Nf3 {[%emt 0:00:02]} Bg4 {[%emt 0:00:04]} 6. Be2 {[%emt 0:00:03]} e6 {[%emt 0:00:07]} 7. O-O {[%emt 0:00:02]} Be7 {[%emt 0:00:02]} 8. d3 {[%emt 0:00:06]} O-O {[%emt 0:00:03]} 9. Nbd2 {[%emt 0:00:02]} Rc8 {[%emt 0:00:14]} 10. Ne5 {[%emt 0:00:18]} Bxe2 {[%emt 0:00:23]} 11. Qxe2 {[%emt 0:00:01]} Nd7 {[%emt 0:00:58]} 12. Ndf3 {[%emt 0:00:30]} f6 {[%emt 0:00:23]} 13. Nxc6 {[%emt 0:00:12]} Rxc6 {[%emt 0:00:10]} 14. e4 {[%emt 0:00:09]} Re8 {[%emt 0:00:47]} 15. Rae1 {[%emt 0:00:23]} Rc8 {[%emt 0:00:57]} 16. exd5 {[%emt 0:00:14]} exd5 {[%emt 0:00:11]} 17. Qe6+ {[%emt 0:00:02]} Kh8 {[%emt 0:00:01]} 18. Qxd5 {[%emt 0:00:03]} Qc7 {[%emt 0:00:08]} 19. Qf7 {[%emt 0:00:34]} Nf8 {[%emt 0:01:15]} 20. Nh4 {[%emt 0:00:33]} Bd6 {[%emt 0:01:06]} 21. Qxe8 {[%emt 0:02:35]} Rxe8 {[%emt 0:00:02]} 22. Rxe8 {[%emt 0:00:02]} Qd7 {[%emt 0:00:50]} 23. Rfe1 {[%emt 0:00:28]} Kg8 {[%emt 0:00:17]} 24. g3 {[%emt 0:00:12]} Kf7 {[%emt 0:00:21]} 25. R8e2 {[%emt 0:00:08]} a5 {[%emt 0:00:26]} 26. Nf3 {[%emt 0:00:25]} a4 {[%emt 0:00:09]} 27. Ne5+ {[%emt 0:00:43]} fxe5 {[%emt 0:00:48]} 28. fxe5 {[%emt 0:00:01]} axb3 {[%emt 0:00:42]} 29. exd6 {[%emt 0:00:30]} Qxd6 {[%emt 0:00:05]} 30. axb3 {[%emt 0:00:05]} Kg6 {[%emt 0:01:30]} 31. Re4 {[%emt 0:00:19]} h5 {[%emt 0:00:07]} 32. Re7 {[%emt 0:00:38]} 1-0

[Event "Skalica Rapid 2020"]
[Site "Skalica"]
[Date "2020.08.29"]
[Round "3.12"]
[White "Dubanova, Kristina"]
[Black "Meszaros, Casey Ryan"]
[Result "0-1"]
[ECO "C38"]
[WhiteElo "1128"]
[BlackElo "1478"]
[Annotator "NA"]
[PlyCount "64"]
[EventDate "2020.08.29"]
[EventType "swiss"]
[EventCountry "SVK"]
[SourceTitle "playchess.com"]
[Source "ChessBase"]
[SourceQuality "1"]
[TimeControl "600+5"]

1. e4 {[%emt 0:00:00]} e5 {[%emt 0:00:00]} 2. f4 {[%emt 0:00:00]} exf4 {[%emt 0:00:00]} 3. Nf3 {[%emt 0:00:00]} g5 {[%emt 0:00:01]} 4. Bc4 {[%emt 0:00:02]} Bg7 {[%emt 0:00:02]} 5. O-O {[%emt 0:00:06]} h6 {[%emt 0:00:12]} 6. d4 {[%emt 0:00:03]} g4 {[%emt 0:01:43]} 7. Nfd2 {[%emt 0:00:34]} Bxd4+ {[%emt 0:00:08]} 8. Kh1 {[%emt 0:00:23]} Be3 {[%emt 0:01:04]} 9. Nb3 {[%emt 0:00:34]} Bxc1 {[%emt 0:00:44]} 10. Qxc1 {[%emt 0:00:03]} b5 {[%emt 0:02:16]} 11. Bxf7+ {[%emt 0:02:39]} Kxf7 {[%emt 0:00:28]} 12. Qxf4+ {[%emt 0:00:07]} Qf6 {[%emt 0:00:28]} 13. Qxf6+ {[%emt 0:00:16]} Nxf6 {[%emt 0:00:02]} 14. e5 {[%emt 0:00:01]} d6 {[%emt 0:01:08]} 15. exf6 {[%emt 0:00:27]} b4 {[%emt 0:00:20]} 16. a3 {[%emt 0:00:24]} Be6 {[%emt 0:00:40]} 17. axb4 {[%emt 0:00:10]} Bxb3 {[%emt 0:00:06]} 18. cxb3 {[%emt 0:00:04]} Re8 {[%emt 0:00:11]} 19. Nc3 {[%emt 0:00:15]} c6 {[%emt 0:00:08]} 20. Rad1 {[%emt 0:00:19]} d5 {[%emt 0:00:11]} 21. b5 {[%emt 0:00:14]} Rd8 {[%emt 0:00:57]} 22. bxc6 {[%emt 0:01:20]} Nxc6 {[%emt 0:00:19]} 23. Rxd5 {[%emt 0:00:32]} Rxd5 {[%emt 0:00:03]} 24. Nxd5 {[%emt 0:00:01]} Rd8 {[%emt 0:00:05]} 25. Ne3 {[%emt 0:00:08]} h5 {[%emt 0:00:02]} 26. Nf5 {[%emt 0:01:21]} Ne5 {[%emt 0:00:16]} 27. Nh6+ {[%emt 0:00:45]} Kf8 {[%emt 0:00:11]} 28. h3 {[%emt 0:00:46]} g3 {[%emt 0:00:01]} 29. Nf5 {[%emt 0:00:26]} h4 {[%emt 0:00:08]} 30. Nxh4 {[%emt 0:00:03]} Nd3 {[%emt 0:00:03]} 31. Rd1 {[%emt 0:00:16]} Nf2+ {[%emt 0:00:01]} 32. Kg1 {[%emt 0:00:12]} Rxd1# 0-1

[Event "Skalica Rapid 2020"]
[Site "Skalica"]
[Date "2020.08.29"]
[Round "3.13"]
[White "Chlpek, Daniel"]
[Black "Skreno Vladimir"]
[Result "0-1"]
[ECO "B30"]
[WhiteElo "1879"]
[BlackElo "2089"]
[Annotator "ChessBase"]
[PlyCount "94"]
[EventDate "2020.08.29"]
[EventType "swiss"]
[EventCountry "SVK"]
[SourceTitle "playchess.com"]
[Source "ChessBase"]
[SourceQuality "1"]
[TimeControl "600+5"]

1. e4 {[%emt 0:00:00]} c5 {[%emt 0:00:00]} 2. Nf3 {[%emt 0:00:00]} Nc6 {[%emt 0:00:01]} 3. Bb5 {[%emt 0:00:01]} Nd4 {[%emt 0:00:01]} 4. Nxd4 {[%emt 0:00:02]} cxd4 {[%emt 0:00:01]} 5. O-O {[%emt 0:00:02]} g6 {[%emt 0:00:03]} 6. d3 {[%emt 0:00:05]} Bg7 {[%emt 0:00:01]} 7. c3 {[%emt 0:00:00]} a6 {[%emt 0:00:14]} 8. Bc4 {[%emt 0:00:05]} b5 {[%emt 0:00:13]} 9. Bb3 {[%emt 0:00:05]} Bb7 {[%emt 0:00:10]} 10. Qf3 {[%emt 0:00:40]} e6 {[%emt 0:00:14]} 11. cxd4 {[%emt 0:00:20]} Bxd4 {[%emt 0:00:03]} 12. Nc3 {[%emt 0:00:01]} Ne7 {[%emt 0:00:28]} 13. Be3 {[%emt 0:00:14]} Bg7 {[%emt 0:00:09]} 14. Rac1 {[%emt 0:00:08]} O-O {[%emt 0:00:12]} 15. Qe2 {[%emt 0:00:03]} d5 {[%emt 0:00:13]} 16. exd5 {[%emt 0:00:13]} Nxd5 {[%emt 0:00:07]} 17. Ne4 {[%emt 0:00:44]} Nxe3 {[%emt 0:00:31]} 18. fxe3 {[%emt 0:00:12]} Bxe4 {[%emt 0:00:31]} 19. dxe4 {[%emt 0:00:02]} Qb6 {[%emt 0:00:17]} 20. Rfd1 {[%emt 0:00:21]} a5 {[%emt 0:00:10]} 21. a3 {[%emt 0:00:18]} Rad8 {[%emt 0:00:27]} 22. Kf2 {[%emt 0:00:28]} b4 {[%emt 0:00:22]} 23. a4 {[%emt 0:00:03]} Rd6 {[%emt 0:00:43]} 24. Rxd6 {[%emt 0:01:08]} Qxd6 {[%emt 0:00:01]} 25. g3 {[%emt 0:00:06]} Qe5 {[%emt 0:00:03]} 26. Rc4 {[%emt 0:00:26]} Rd8 {[%emt 0:00:25]} 27. Rd4 {[%emt 0:01:39]} Rxd4 {[%emt 0:00:15]} 28. exd4 {[%emt 0:00:01]} Qxd4+ {[%emt 0:00:01]} 29. Kf3 {[%emt 0:00:05]} h5 {[%emt 0:00:22]} 30. h3 {[%emt 0:00:17]} Be5 {[%emt 0:00:53]} 31. Bc4 {[%emt 0:00:47]} Qxb2 {[%emt 0:00:10]} 32. Qxb2 {[%emt 0:00:01]} Bxb2 {[%emt 0:00:01]} 33. Kf4 {[%emt 0:00:04]} e5+ {[%emt 0:00:16]} 34. Ke3 {[%emt 0:00:03]} Kf8 {[%emt 0:00:11]} 35. Kd3 {[%emt 0:00:01]} f5 {[%emt 0:00:25]} 36. exf5 {[%emt 0:00:17]} gxf5 {[%emt 0:00:06]} 37. Be6 {[%emt 0:00:02]} f4 {[%emt 0:00:07]} 38. gxf4 {[%emt 0:00:02]} exf4 {[%emt 0:00:05]} 39. Bd5 {[%emt 0:00:04]} Ke7 {[%emt 0:00:04]} 40. Kc4 {[%emt 0:00:05]} Kd6 {[%emt 0:00:04]} 41. Bf3 {[%emt 0:00:00]} h4 {[%emt 0:00:18]} 42. Be4 {[%emt 0:00:30]} Bf6 {[%emt 0:00:09]} 43. Bf3 {[%emt 0:00:04]} Ke5 {[%emt 0:00:07]} 44. Bc6 {[%emt 0:00:10]} b3 {[%emt 0:00:12]} 45. Kxb3 {[%emt 0:00:02]} Kd4 {[%emt 0:00:01]} 46. Kc2 {[%emt 0:00:12]} Ke3 {[%emt 0:00:02]} 47. Kd1 {[%emt 0:00:02]} Bc3 {[%emt 0:00:01]} 0-1